bitfinex-derivatives/quotes_SOLF0:USTF0_20240830
["timestamp","ask_amount","ask_price","bid_price","bid_amount"]
[1725041115187,3.709,134.82,134.8,0.04831379]
[1725041116077,0.05277793,134.83,134.8,0.04831379]
[1725041116271,0.05277793,134.83,134.8,28.55831379]
[1725041116983,0.05277793,134.83,134.8,0.04831379]
[1725041117178,7.4237585,134.82,134.8,0.04831379]
[1725041117580,3.7089,134.82,134.8,0.04831379]
[1725041117773,3.76127793,134.83,134.8,3.75751379]
[1725041117977,7.56293392,134.83,134.8,3.75751379]
[1725041118284,0.05277793,134.83,134.8,0.04831379]
[1725041119574,3.76137793,134.83,134.8,3.75761379]
[1725041119785,7.50859644,134.83,134.8,0.04831379]
[1725041120081,3.79999644,134.83,134.8,0.04831379]
[1725041120680,3.79999644,134.83,134.74,28.51]
[1725041120987,35.943,134.82,134.74,28.51]
[1725041121384,11.1425,134.8,134.74,28.51]
[1725041121792,0.0555327,134.78,134.75,28.51]
[1725041121986,0.0555327,134.78,134.77,3.7101]
[1725041123888,7.433,134.82,134.79,3.7095]
[1725041124092,7.433,134.82,134.75,28.51]
[1725041124289,7.433,134.82,134.77,28.51]
[1725041124491,1.4481,134.84,134.77,32.1616062]
[1725041124681,0.05230169,134.82,134.8,3.7091]
[1725041125086,0.05230169,134.82,134.79,0.04795188]
[1725041125286,0.05230169,134.82,134.8,3.7091]
[1725041126392,0.05230169,134.82,134.81,3.7091]
[1725041127500,0.05230169,134.82,134.8,3.7091]
[1725041128596,0.05230169,134.82,134.81,3.7091]
[1725041132799,0.05230169,134.82,134.79,0.04795188]
[1725041132800,3.74556778,134.82,134.79,0.04795188]
[1725041133097,11.17597211,134.82,134.79,0.04795188]
[1725041133792,39.68597211,134.82,134.74,28.51]
[1725041134103,1.4372,134.81,134.74,28.51]
[1725041134302,1.4372,134.81,134.76,28.51]
[1725041134607,8.8702,134.81,134.76,28.51]
[1725041134901,0.05370776,134.8,134.77,0.0233529]
[1725041135100,0.05370776,134.8,134.78,3.7097]
[1725041136601,3.76310776,134.8,134.78,3.7097]
[1725041136800,3.76310776,134.8,134.77,3.7333529]
[1725041137200,3.7097,134.79,134.77,3.7333529]
[1725041137401,0.05370776,134.8,134.78,3.7099]
[1725041137798,3.76320776,134.8,134.78,3.7099]
[1725041138303,3.76320776,134.8,134.77,0.0233529]
[1725041138304,3.7096,134.79,134.77,3.7333529]
[1725041139305,3.76310776,134.8,134.77,3.7333529]
[1725041139702,3.7098,134.79,134.77,0.0233529]
[1725041141500,3.7099,134.78,134.77,0.0233529]
[1725041142021,28.56370776,134.8,134.67,0.0983]
[1725041142316,35.943,134.8,134.7,28.51]
[1725041142505,1.3904,134.79,134.72,28.51]
[1725041142708,1.3904,134.79,134.73,28.51]
[1725041142909,1.3904,134.79,134.67,7.5239]
[1725041142910,7.433,134.8,134.75,28.51]
[1725041143108,0.054065,134.79,134.78,3.7099]
[1725041145014,0.054065,134.79,134.75,32.27520771]
[1725041145313,0.054065,134.79,134.75,28.51]
[1725041146015,3.763665,134.79,134.76,3.7103]
[1725041146203,3.763665,134.79,134.75,28.51]
[1725041146409,0.054065,134.79,134.77,3.7101]
[1725041146716,0.054065,134.79,134.75,28.51]
[1725041147114,3.763765,134.79,134.76,3.7103]
[1725041147335,0.054065,134.79,134.75,28.51]
[1725041147814,3.763865,134.79,134.76,3.7102]
[1725041148418,0.054065,134.79,134.77,3.7101]
[1725041149616,0.054065,134.79,134.78,3.7099]
[1725041151517,7.433,134.84,134.78,28.51]
[1725041152416,8.7623,134.86,134.78,28.51]
[1725041152722,0.05504844,134.82,134.8,0.054065]
[1725041153319,3.76394844,134.82,134.8,0.054065]
[1725041153837,0.05504844,134.82,134.8,3.763265]
[1725041154118,0.05504844,134.82,134.8,0.054065]
[1725041154716,10.30452765,135.01,134.8,0.054065]
[1725041154717,28.51,134.9,134.8,28.564065]
[1725041155013,3.7069,134.89,134.85,3.7078]
[1725041155416,7.96860547,134.91,134.83,28.51]
[1725041155613,3.7067,134.9,134.86,3.7075]
[1725041155919,3.7067,134.9,134.87,0.05379946]
[1725041155920,0.04890142,134.89,134.87,0.05379946]
[1725041156315,3.75580142,134.89,134.87,0.05379946]
[1725041157410,0.04890142,134.89,134.87,0.05379946]
[1725041157918,28.51,134.88,134.77,28.51]
[1725041158115,28.51,134.86,134.77,32.22923309]
[1725041158310,3.7084,134.84,134.81,3.7089]
[1725041158715,3.7084,134.84,134.77,32.22923309]
[1725041158917,3.76408503,134.84,134.81,0.04938521]
[1725041159115,3.7086,134.83,134.81,0.04938521]
[1725041159616,3.7088,134.82,134.81,0.04938521]
[1725041160928,7.433,134.83,134.81,0.04938521]
[1725041161615,0.05568503,134.84,134.81,0.04938521]
[1725041161814,0.05568503,134.84,134.81,28.55938521]
[1725041162121,0.05568503,134.84,134.82,3.7088]
[1725041162321,0.05568503,134.84,134.81,28.55938521]
[1725041162918,0.05568503,134.84,134.83,3.7085]
[1725041163123,12.55470547,134.91,134.82,28.51]
[1725041163416,3.707,134.89,134.86,3.7075]
[1725041163616,8.8761,134.91,134.86,3.7075]
[1725041164125,0.05268188,134.9,134.87,0.04960663]
[1725041164520,0.05268188,134.9,134.87,3.75690663]
[1725041164723,0.05268188,134.9,134.87,0.04960663]
[1725041165716,0.05268188,134.9,134.89,3.7069]
[1725041168121,0.05268188,134.9,134.88,3.707]
[1725041168831,0.05268188,134.9,134.89,3.7069]
[1725041169628,0.05268188,134.9,134.88,3.707]
[1725041170029,0.05268188,134.9,134.87,0.04960663]
[1725041170223,0.05268188,134.9,134.87,3.75690663]
[1725041170426,0.05268188,134.9,134.87,0.04960663]
[1725041170824,0.05268188,134.9,134.89,3.7069]
[1725041173931,0.05268188,134.9,134.87,0.04960663]
[1725041174636,1.65993486,134.98,134.88,28.51]
[1725041174837,3.77242401,134.97,134.9,28.51]
[1725041175429,3.7048,134.97,134.94,3.7053]
[1725041175647,3.75835041,134.97,134.94,3.75296821]
[1725041176534,3.75835041,134.97,134.95,3.7051]
[1725041177245,3.75835041,134.97,134.94,3.75306821]
[1725041178330,3.705,134.96,134.94,3.75306821]
[1725041178847,3.7052,134.95,134.94,0.04766821]
[1725041180140,3.7061,134.92,134.9,3.7064]
[1725041180446,28.51,134.95,134.86,28.51]
[1725041180842,11.79693486,134.98,134.85,28.51]
[1725041181147,3.7062,134.92,134.9,0.05582324]
[1725041181749,0.05692693,134.93,134.92,3.706]
[1725041181953,0.05692693,134.93,134.9,0.05582324]
[1725041182337,3.75296938,134.92,134.85,28.51]
[1725041182642,1.3808,134.91,134.85,28.51]
[1725041182832,3.7069,134.89,134.85,32.17438952]
[1725041183035,3.7069,134.89,134.85,3.66438952]
[1725041183237,3.7069,134.89,134.83,28.51]
[1725041183437,0.05498408,134.87,134.86,3.7076]
[1725041185742,0.05498408,134.87,134.85,3.76094951]
[1725041186749,0.05498408,134.87,134.85,0.05314951]
[1725041186949,3.7077,134.86,134.85,0.05314951]
[1725041187449,28.51,134.86,134.76,28.51]
[1725041187645,29.8637,134.85,134.76,28.51]
[1725041187836,29.8637,134.85,134.77,3.62496392]
[1725041187837,28.51,134.83,134.77,3.62496392]
[1725041188142,3.7092,134.81,134.77,3.71]
[1725041188362,0.04888629,134.8,134.77,3.76659594]
[1725041188646,3.75828629,134.8,134.77,3.71]
[1725041188845,0.04888629,134.8,134.75,28.51]
[1725041189241,3.75818629,134.8,134.77,3.71]
[1725041189436,0.04888629,134.8,134.76,3.64238985]
[1725041190343,3.75838629,134.8,134.77,3.71]
[1725041190538,3.75838629,134.8,134.76,3.64238985]
[1725041190539,0.04888629,134.8,134.76,3.64238985]
[1725041190744,0.04888629,134.8,134.75,28.51]
[1725041190959,3.7097,134.79,134.76,3.7103]
[1725041191144,0.05331013,134.79,134.74,3.73998516]
[1725041192244,0.05331013,134.79,134.71,28.51]
[1725041192443,0.04709947,134.76,134.71,28.51]
[1725041192647,0.04709947,134.76,134.71,32.21956973]
[1725041192846,0.04709947,134.76,134.71,28.51]
[1725041193148,0.04709947,134.76,134.69,28.51]
[1725041193352,0.05308755,134.74,134.67,28.51]
[1725041193743,3.7114,134.73,134.7,3.7119]
[1725041194054,0.05308755,134.74,134.67,28.51]
[1725041194666,3.76408755,134.74,134.71,3.7117]
[1725041196559,3.7113,134.73,134.7,3.712]
[1725041198804,11.19708755,134.74,134.71,3.7118]
[1725041199351,3.7113,134.73,134.7,3.712]
[1725041200644,11.19718755,134.74,134.71,3.7118]
[1725041200872,7.48608755,134.74,134.67,28.51]
[1725041201049,0.05308755,134.74,134.7,28.51]
[1725041201354,0.05308755,134.74,134.73,3.7113]
[1725041201552,0.05308755,134.74,134.7,28.51]
[1725041202051,0.05308755,134.74,134.72,3.7115]
[1725041202244,0.05308755,134.74,134.7,28.51]
[1725041202649,0.05308755,134.74,134.73,3.7113]
[1725041202851,0.05308755,134.74,134.73,7.35636127]
[1725041204348,3.71623627,134.81,134.73,7.35636127]
[1725041204349,7.433,134.82,134.79,3.7096]
[1725041204552,5.11838284,134.84,134.77,28.51]
[1725041204956,5.11838284,134.84,134.76,28.51]
[1725041205458,5.11838284,134.84,134.68,7.4248]
[1725041205459,0.056613,134.81,134.78,28.56502214]
[1725041205755,0.056613,134.81,134.78,28.56151113]
[1725041205756,0.04887374,134.81,134.78,28.56151113]
[1725041206252,0.04887374,134.81,134.8,3.7093]
[1725041208461,0.04887374,134.81,134.78,28.56151113]
[1725041209766,0.04887374,134.81,134.8,3.7093]
[1725041210460,0.04887374,134.81,134.8,32.2193]
[1725041212165,0.04887374,134.81,134.8,35.94649181]
[1725041212765,1.4046,134.86,134.8,28.51]
[1725041212970,10.2094,134.88,134.85,3.708]
[1725041213159,3.7075,134.87,134.83,28.51]
[1725041213383,3.7075,134.87,134.84,3.7081]
[1725041213971,3.76050395,134.87,134.84,3.76358806]
[1725041214369,3.76050395,134.87,134.85,3.7079]
[1725041214370,0.05300395,134.87,134.85,3.7079]
[1725041215576,3.76050395,134.87,134.85,3.7079]
[1725041215776,0.05300395,134.87,134.86,3.7077]
[1725041215982,0.05300395,134.87,134.84,0.05548806]
[1725041216529,0.05300395,134.87,134.86,3.7077]
[1725041218669,0.05300395,134.87,134.84,0.05548806]
[1725041219175,0.05300395,134.87,134.86,3.7077]
[1725041221978,0.05300395,134.87,134.84,0.05548806]
[1725041222963,0.05300395,134.87,134.84,3.76348806]
[1725041223280,0.05300395,134.87,134.84,0.05548806]
[1725041223575,3.76040395,134.87,134.84,3.76348806]
[1725041224674,3.76040395,134.87,134.85,3.708]
[1725041224874,0.05300395,134.87,134.84,0.05548806]
[1725041225065,0.05300395,134.87,134.84,28.56548806]
[1725041225271,0.05300395,134.87,134.86,32.2177]
[1725041225478,8.8059,134.95,134.86,28.51]
[1725041225769,1.3729,134.95,134.89,28.51]
[1725041225977,3.7057,134.94,134.91,3.7063]
[1725041226173,1.3729,134.95,134.89,28.51]
[1725041226578,0.04980017,134.93,134.92,3.7059]
[1725041230677,3.706,134.92,134.91,0.04694887]
[1725041231077,0.04980017,134.93,134.91,0.04694887]
[1725041231279,3.75570017,134.93,134.91,0.04694887]
[1725041231472,0.04980017,134.93,134.91,0.04694887]
[1725041232373,0.04980017,134.93,134.92,3.706]
[1725041234383,1.65993486,134.98,134.97,3.7047]
[1725041234778,1.65993486,134.98,134.95,28.51]
[1725041235484,1.70849223,134.98,134.95,28.56389956]
[1725041235884,1.70849223,134.98,134.96,3.7049]
[1725041236086,1.70849223,134.98,134.95,32.34937326]
[1725041236483,1.70849223,134.98,134.97,3.7047]
[1725041236684,1.70849223,134.98,134.95,3.83937326]
[1725041236889,1.70849223,134.98,134.96,3.7048]
[1725041237393,1.70849223,134.98,134.95,0.05389956]
[1725041237394,5.41299223,134.98,134.95,0.05389956]
[1725041237594,5.41299223,134.98,134.95,3.75899956]
[1725041237992,1.70849223,134.98,134.95,0.05389956]
[1725041238431,3.7048,134.97,134.95,0.05389956]
[1725041238586,1.70849223,134.98,134.95,0.05389956]
[1725041238998,3.7048,134.97,134.95,0.05389956]
[1725041239316,1.70849223,134.98,134.95,0.05389956]
[1725041239486,3.7049,134.96,134.95,0.05389956]
[1725041239888,3.7056,134.94,134.89,28.51]
[1725041240094,3.7056,134.94,134.9,3.64340223]
[1725041240521,3.7056,134.94,134.91,3.7061]
[1725041240995,0.05324809,134.94,134.91,0.04761253]
[1725041241498,0.05324809,134.94,134.92,3.7058]
[1725041241801,0.05324809,134.94,134.91,28.55761253]
[1725041241992,0.05324809,134.94,134.93,3.7058]
[1725041244298,0.05324809,134.94,134.92,3.7059]
[1725041244493,3.75884809,134.94,134.91,0.04761253]
[1725041244698,0.05324809,134.94,134.91,0.04761253]
[1725041245204,3.706,134.93,134.91,0.04761253]
[1725041245905,3.75884809,134.94,134.91,3.75381253]
[1725041246705,3.7058,134.93,134.91,3.75381253]
[1725041247210,3.7058,134.93,134.91,0.04761253]
[1725041247411,3.706,134.92,134.91,0.04761253]
[1725041251901,3.706,134.92,134.86,28.51]
[1725041252108,3.7065,134.91,134.86,28.51]
[1725041252314,3.7065,134.91,134.88,3.707]
[1725041252615,5.93,134.9,134.88,3.707]
[1725041252817,5.93,134.9,134.86,32.30706492]
[1725041253021,0.05484766,134.89,134.87,0.05677568]
[1725041253226,0.05484766,134.89,134.8,28.51]
[1725041253227,1.3464,134.89,134.8,28.51]
[1725041253520,2.6988,134.89,134.82,3.7086]
[1725041253709,3.7078,134.86,134.8,32.13992884]
[1725041253914,3.7078,134.86,134.82,3.7086]
[1725041254111,0.05495756,134.85,134.83,0.05111603]
[1725041254515,0.05495756,134.85,134.83,3.75951603]
[1725041255411,0.05495756,134.85,134.83,0.05111603]
[1725041256618,0.05495756,134.85,134.84,3.7082]
[1725041257018,0.05495756,134.85,134.83,0.05111603]
[1725041257216,0.05495756,134.85,134.83,3.75951603]
[1725041258370,0.05495756,134.85,134.83,0.05111603]
[1725041259022,3.7082,134.84,134.83,0.05111603]
[1725041259519,0.05495756,134.85,134.83,0.05111603]
[1725041260516,0.05495756,134.85,134.83,3.75951603]
[1725041261124,0.05495756,134.85,134.77,3.7101]
[1725041261338,28.51,134.85,134.76,28.51]
[1725041261621,3.7093,134.81,134.77,3.7101]
[1725041262120,0.05500764,134.8,134.79,3.7096]
[1725041262322,0.05477692,134.81,134.79,28.51]
[1725041262627,11.1226,134.87,134.79,28.51]
[1725041262816,11.1226,134.87,134.74,0.1536]
[1725041262817,7.415,134.87,134.82,28.51]
[1725041263018,7.415,134.87,134.82,32.25564705]
[1725041263228,7.415,134.87,134.8,28.51]
[1725041263658,3.7647385,134.85,134.82,0.05176562]
[1725041264728,0.0567385,134.85,134.82,3.69247752]
[1725041265320,0.0567385,134.85,134.83,3.7083]
[1725041265739,0.0567385,134.85,134.82,32.20247752]
[1725041266226,0.0567385,134.85,134.83,3.7083]
[1725041269233,0.0567385,134.85,134.84,3.7082]
[1725041269424,0.0567385,134.85,134.82,32.18551517]
[1725041269425,0.0567385,134.85,134.82,0.05176562]
[1725041269638,7.4717385,134.85,134.82,0.05176562]
[1725041270029,0.0567385,134.85,134.82,0.05176562]
[1725041270966,1.08,134.84,134.82,0.05176562]
[1725041272936,1.75,134.84,134.82,3.76046562]
[1725041273139,1.75,134.84,134.82,28.56176562]
[1725041274237,1.75,134.84,134.82,3.76046562]
[1725041275039,3.7085,134.83,134.82,0.05176562]
[1725041275338,1.75,134.84,134.82,0.05176562]
[1725041276177,3.7085,134.83,134.82,0.05176562]
[1725041276833,1.75,134.84,134.82,0.05176562]
[1725041278136,3.7085,134.83,134.82,0.05176562]
[1725041278338,1.75,134.84,134.82,0.05176562]
[1725041279037,3.7085,134.83,134.82,0.05176562]
[1725041279346,1.75,134.84,134.82,0.05176562]
[1725041279639,5.4584,134.84,134.82,0.05176562]
[1725041281542,4.7884,134.84,134.82,0.05176562]
[1725041281933,4.7884,134.84,134.82,3.76056562]
[1725041282133,1.08,134.84,134.82,0.05176562]
[1725041282342,1.08,134.84,134.82,32.23797123]
[1725041282540,1.08,134.84,134.83,3.7085]
[1725041283142,1.08,134.84,134.83,7.48965529]
[1725041283738,7.415,134.88,134.84,3.7082]
[1725041283948,1.3464,134.89,134.86,28.51]
[1725041284640,1.3464,134.89,134.82,28.51]
[1725041284842,0.05695366,134.87,134.84,0.05691557]
[1725041285139,0.05695366,134.87,134.85,3.7078]
[1725041287347,3.76435366,134.87,134.85,3.7078]
[1725041287739,0.05695366,134.87,134.85,3.7078]
[1725041288441,0.05695366,134.87,134.86,3.7077]
[1725041293449,5.98695366,134.87,134.86,3.7077]
[1725041294155,5.98695366,134.87,134.86,32.2177]
[1725041301159,5.98695366,134.87,134.86,3.7077]
[1725041304666,1.4134,134.95,134.87,3.7074]
[1725041304855,5.00998539,134.94,134.89,28.51]
[1725041305370,8.71568539,134.94,134.89,28.51]
[1725041305762,0.05213913,134.93,134.9,0.05306679]
[1725041305963,0.05213913,134.93,134.91,3.7061]
[1725041306266,0.05213913,134.93,134.9,0.05306679]
[1725041306472,0.05213913,134.93,134.92,32.216]
[1725041306868,1.65993486,134.98,134.92,28.51]
[1725041307766,5.36433486,134.98,134.92,28.51]
[1725041308070,0.0480752,134.96,134.94,0.04997213]
[1725041308471,0.0480752,134.96,134.95,3.705]
[1725041310869,0.0480752,134.96,134.95,7.36978552]
[1725041311383,0.0480752,134.96,134.95,3.705]
[1725041311990,0.0480752,134.96,134.95,7.47538292]
[1725041312678,0.0480752,134.96,134.95,3.705]
[1725041318687,0.0480752,134.96,134.94,0.04997213]
[1725041318894,0.0480752,134.96,134.9,3.69101281]
[1725041319187,42.90756498,134.97,134.89,28.51]
[1725041319693,3.7055,134.94,134.91,3.7062]
[1725041319880,3.75410331,134.94,134.91,3.76019]
[1725041320577,3.75410331,134.94,134.92,3.706]
[1725041320978,0.04860331,134.94,134.92,3.706]
[1725041321682,0.04860331,134.94,134.91,3.76019]
[1725041321683,3.75410331,134.94,134.91,3.76019]
[1725041322487,0.04860331,134.94,134.92,3.706]
[1725041322981,3.75420331,134.94,134.91,3.76019]
[1725041326484,3.75420331,134.94,134.92,3.706]
[1725041326691,0.04860331,134.94,134.91,0.05399]
[1725041326987,0.04860331,134.94,134.93,3.7058]
[1725041327583,0.04860331,134.94,134.93,7.46126498]
[1725041328990,9.265,134.97,134.96,3.7049]
[1725041330684,1.71580082,134.98,134.97,3.7047]
[1725041330878,1.71580082,134.98,134.97,7.47025555]
[1725041331083,1.71580082,134.98,134.97,3.7047]
[1725041331592,1.71580082,134.98,134.95,0.05402186]
[1725041332186,1.71580082,134.98,134.97,3.7047]
[1725041333489,1.71580082,134.98,134.97,7.40608499]
[1725041334715,1.71580082,134.98,134.97,3.7047]
[1725041335592,1.71580082,134.98,134.95,0.05402186]
[1725041336199,1.71580082,134.98,134.95,3.75902186]
[1725041336694,1.71580082,134.98,134.95,0.05402186]
[1725041338290,5.42030082,134.98,134.95,0.05402186]
[1725041339500,1.71580082,134.98,134.95,0.05402186]
[1725041339907,3.7047,134.97,134.95,0.05402186]
[1725041341193,5.42030082,134.98,134.95,3.75912186]
[1725041341389,1.71580082,134.98,134.95,0.05402186]
[1725041342300,1.71580082,134.98,134.97,3.7047]
[1725041346207,1.71580082,134.98,134.97,32.2147]
[1725041346400,1.71580082,134.98,134.97,35.93850023]
[1725041351411,7.415,135.01,135.0,3.7038]
[1725041353505,2.62656161,135.02,135.01,3.7036]
[1725041355116,2.62656161,135.02,134.99,0.05442217]
[1725041355312,2.62656161,135.02,134.92,1.5953]
[1725041355313,6.30924967,135.02,134.96,3.79157977]
[1725041355621,11.38,135.0,134.94,11.38]
[1725041355807,11.38,135.0,134.97,3.7045]
[1725041356311,11.42706596,135.0,134.95,3.63723229]
[1725041356510,11.42706596,135.0,134.97,0.05551052]
[1725041357017,11.42706596,135.0,134.97,3.76001052]
[1725041357822,0.04706596,135.0,134.97,3.76001052]
[1725041358012,11.38,134.99,134.94,3.64649111]
[1725041358217,12.7099,134.99,134.92,11.38]
[1725041358414,3.7045,134.98,134.92,11.38]
[1725041358717,12.7099,134.99,134.92,11.38]
[1725041358718,1.3299,134.99,134.94,11.38]
[1725041359112,0.05242351,134.98,134.95,3.75520996]
[1725041359313,0.05242351,134.98,134.95,0.05020996]
[1725041359612,0.05242351,134.98,134.96,3.7049]
[1725041359813,0.05242351,134.98,134.95,0.05020996]
[1725041360017,3.75702351,134.98,134.95,0.05020996]
[1725041360318,0.05242351,134.98,134.95,0.05020996]
[1725041360922,0.05242351,134.98,134.95,3.75530996]
[1725041361421,3.75692351,134.98,134.95,3.75530996]
[1725041362031,0.05242351,134.98,134.95,3.75530996]
[1725041363124,3.75692351,134.98,134.95,1.58240996]
[1725041363430,3.75692351,134.98,134.87,1.3167]
[1725041363431,11.38,134.96,134.89,11.38]
[1725041363726,11.38,134.96,134.9,3.7046229]
[1725041363929,3.7054,134.95,134.92,3.706]
[1725041364128,3.76144804,134.95,134.92,3.75887424]
[1725041364327,3.76144804,134.95,134.94,11.38]
[1725041364328,0.05604804,134.95,134.94,11.38]
[1725041364524,0.05604804,134.95,134.94,15.0855]
[1725041367122,0.05604804,134.95,134.94,3.7055]
[1725041367313,0.05604804,134.95,134.94,15.0855]
[1725041367925,11.43604804,134.95,134.79,10.14093509]
[1725041368287,28.45,134.94,134.85,28.45]
[1725041368419,3.7064,134.91,134.85,32.18480866]
[1725041368928,0.04868776,134.89,134.87,3.75869938]
[1725041369121,0.04974596,134.89,134.87,3.75869938]
[1725041369326,0.04974596,134.89,134.87,0.05149938]
[1725041369527,0.04974596,134.89,134.87,3.75879938]
[1725041370819,0.04974596,134.89,134.88,3.7071]
[1725041372019,0.04974596,134.89,134.87,0.05149938]
[1725041372222,3.75674596,134.89,134.87,0.05149938]
[1725041374432,3.7071,134.88,134.87,0.05149938]
[1725041374830,0.04974596,134.89,134.87,0.05149938]
[1725041375132,3.7071,134.88,134.87,0.05149938]
[1725041375332,7.32523329,134.88,134.87,0.05149938]
[1725041375565,3.7071,134.88,134.87,0.05149938]
[1725041376036,7.35303372,134.88,134.87,0.05149938]
[1725041376238,3.7078,134.86,134.83,3.7084]
[1725041376742,3.64593372,134.88,134.83,3.7084]
[1725041377035,7.415,134.9,134.83,3.7084]
[1725041377229,0.0528997,134.88,134.83,3.7084]
[1725041377543,3.67844644,134.88,134.83,3.7084]
[1725041377733,3.7077,134.86,134.83,3.7084]
[1725041378832,0.0528997,134.88,134.83,28.45]
[1725041379224,11.1751997,134.88,134.84,3.7081]
[1725041379639,11.1751997,134.88,134.84,7.44910986]
[1725041379832,11.1751997,134.88,134.85,3.7079]
[1725041380634,3.7076,134.87,134.84,3.7081]
[1725041381642,3.7077,134.86,134.83,3.7084]
[1725041382535,3.7077,134.86,134.84,3.7082]
[1725041382736,3.7076,134.87,134.84,3.7082]
[1725041391341,0.0528997,134.88,134.83,28.45]
[1725041391544,0.0528997,134.88,134.85,28.45]
[1725041391742,0.0528997,134.88,134.87,3.7074]
[1725041392030,0.0528997,134.88,134.87,15.0974]
[1725041393041,0.0528997,134.88,134.87,3.7074]
[1725041399640,0.0528997,134.88,134.84,3.77464788]
[1725041399845,0.0528997,134.88,134.83,28.45]
[1725041400050,0.0528997,134.88,134.83,32.17053372]
[1725041400246,0.0528997,134.88,134.87,3.7074]
[1725041400549,0.0528997,134.88,134.81,29.8577]
[1725041400748,3.7074,134.87,134.81,29.8577]
[1725041401043,3.7074,134.87,134.82,3.65594187]
[1725041402244,3.7074,134.87,134.81,29.8577]
[1725041402650,3.7074,134.87,134.85,3.7078]
[1725041403648,3.7601997,134.88,134.85,3.7078]
[1725041403957,0.0528997,134.88,134.85,3.7078]
[1725041405058,3.7075,134.87,134.85,3.7078]
[1725041406355,3.7600997,134.88,134.86,3.7077]
[1725041406572,0.0528997,134.88,134.81,33.63336906]
[1725041407452,3.83284316,134.88,134.81,33.63336906]
[1725041407644,0.0528997,134.88,134.81,33.63336906]
[1725041408256,3.7077,134.86,134.84,3.708]
[1725041408761,3.708,134.85,134.81,5.18336906]
[1725041408954,0.05247409,134.84,134.81,5.18336906]
[1725041409354,0.05247409,134.84,134.83,3.7085]
[1725041412455,0.05247409,134.84,134.79,28.45]
[1725041412861,3.76087409,134.84,134.79,28.45]
[1725041413460,28.45,134.8,134.64,3.38031169]
[1725041413670,0.05402421,134.73,134.69,28.45]
[1725041413857,0.05369333,134.72,134.69,28.45]
[1725041414062,0.05035379,134.72,134.69,11.41]
[1725041414571,10.1777,134.79,134.71,11.41]
[1725041414572,2.7627,134.79,134.71,11.41]
[1725041414758,2.7627,134.79,134.75,11.41]
[1725041415063,2.3202,134.83,134.75,11.41]
[1725041415312,11.41,134.82,134.75,11.41]
[1725041415561,3.7098,134.79,134.77,0.05148663]
[1725041415962,0.04842182,134.8,134.77,11.46148663]
[1725041416563,0.04842182,134.8,134.77,15.10240381]
[1725041416767,0.04842182,134.8,134.78,3.7096]
[1725041417568,0.04842182,134.8,134.79,3.7096]
[1725041417971,0.04842182,134.8,134.77,0.05148663]
[1725041418469,0.04842182,134.8,134.78,3.7099]
[1725041418971,0.04842182,134.8,134.77,3.76158663]
[1725041420462,3.75792182,134.8,134.77,0.05148663]
[1725041420657,0.04842182,134.8,134.77,0.05148663]
[1725041421059,3.7097,134.79,134.77,0.05148663]
[1725041423265,3.7099,134.78,134.77,0.05148663]
[1725041424276,3.7097,134.79,134.77,0.05148663]
[1725041424472,0.04842182,134.8,134.77,0.05148663]
[1725041424670,0.04842182,134.8,134.77,32.20903934]
[1725041424976,0.04842182,134.8,134.77,28.54148663]
[1725041425376,0.04842182,134.8,134.79,3.7096]
[1725041426760,0.04842182,134.8,134.79,32.1996]
[1725041426962,7.415,134.87,134.82,3.7086]
[1725041427161,3.6389869,134.86,134.82,3.7086]
[1725041427372,32.7243,134.88,134.82,3.7086]
[1725041427966,0.04696783,134.86,134.84,0.04983661]
[1725041428278,3.708,134.85,134.84,0.04983661]
[1725041429480,7.415,134.84,134.63,25.74019501]
[1725041429684,7.415,134.82,134.72,28.49]
[1725041429869,3.7097,134.79,134.75,3.7106]
[1725041430381,0.05407002,134.78,134.76,0.04817767]
[1725041431681,3.76407002,134.78,134.76,0.04817767]
[1725041433978,0.05407002,134.78,134.76,0.04817767]
[1725041434785,0.05407002,134.78,134.77,3.7102]
[1725041437289,0.05407002,134.78,134.76,3.75847767]
[1725041437787,3.76417002,134.78,134.76,0.04817767]
[1725041438890,3.76417002,134.78,134.76,3.75857767]
[1725041439785,3.7102,134.77,134.76,0.04817767]
[1725041439981,7.46907002,134.78,134.76,0.04817767]